bitfinex/quotes_ETHUSD_20220226
["timestamp","ask_amount","ask_price","bid_price","bid_amount"]
[1645882303351,3.64729817,2781.8,2780.8,1.127]
[1645882303554,0.89956,2781.7,2780.8,1.127]
[1645882303810,0.00488651,2781.2,2780.8,1.127]
[1645882304209,0.00488651,2781.2,2780.6,1.07616156]
[1645882304610,4.50349817,2781.6,2780.6,1.07616156]
[1645882304810,0.00488704,2781.0,2780.6,1.07616156]
[1645882305914,0.14729817,2781.6,2780.6,1.07616156]
[1645882306115,0.00488712,2780.9,2780.6,1.07616156]
[1645882306314,0.00488712,2780.9,2780.0,6.21699]
[1645882306515,0.00488712,2780.9,2780.0,4.4181]
[1645882306516,0.90472712,2780.9,2780.0,4.4181]
[1645882306715,0.52249817,2780.8,2780.0,4.4181]
[1645882307316,0.52249817,2780.8,2780.1,1.26341092]
[1645882307317,0.0048874,2780.6,2780.1,1.26341092]
[1645882308248,0.1438,2780.7,2780.1,1.26341092]
[1645882308446,0.00488748,2780.5,2780.1,1.26341092]
[1645882309450,0.00349817,2780.8,2780.1,1.26341092]
[1645882309650,0.00488752,2780.4,2780.1,4.76341092]
[1645882310248,0.00488752,2780.4,2780.1,1.26341092]
[1645882310649,0.00349817,2781.0,2780.1,1.26341092]
[1645882311053,0.00472696,2780.4,2780.1,1.26341092]
[1645882311889,0.00349817,2781.0,2780.1,1.26341092]
[1645882312090,0.00472698,2780.4,2780.1,1.26341092]
[1645882312994,0.00349817,2781.0,2780.1,1.26341092]
[1645882313191,0.00472698,2780.4,2780.1,1.26341092]
[1645882314199,0.00349817,2781.0,2780.1,1.26341092]
[1645882314397,0.00488757,2780.4,2780.1,1.26341092]
[1645882315455,0.14729817,2781.0,2780.1,1.26341092]
[1645882315651,0.00489299,2780.4,2780.1,1.26341092]
[1645882316653,0.14729817,2781.0,2780.1,1.26341092]
[1645882316853,0.00489299,2780.4,2780.1,1.26341092]
[1645882317855,0.02306721,2780.8,2780.1,1.26341092]
[1645882317856,0.00349817,2780.8,2780.1,1.26341092]
[1645882318054,0.01956904,2780.8,2780.7,1.34443859]
[1645882319091,0.14729817,2781.6,2780.7,1.34443859]
[1645882319290,0.0048868,2780.9,2780.7,1.34443859]
[1645882320194,0.14729817,2781.6,2780.7,1.34443859]
[1645882320394,0.00488676,2780.9,2780.7,1.34443859]
[1645882320993,0.00488676,2780.9,2780.7,1.34310816]
[1645882321394,0.90752777,2781.2,2780.4,11.09]
[1645882321596,0.90752777,2781.0,2780.4,11.09]
[1645882321995,0.90752777,2781.0,2780.2,1.5062]
[1645882322193,0.90752777,2781.0,2780.1,11.09]
[1645882322399,0.90752777,2781.0,2780.0,4.9681]
[1645882322648,0.91102594,2780.9,2780.1,1.07299429]
[1645882322953,0.90752777,2780.8,2780.1,1.07299429]
[1645882323551,0.00349817,2781.0,2780.1,12.16299429]
[1645882323552,0.90752777,2780.9,2780.1,12.16299429]
[1645882323951,0.90752777,2780.8,2780.0,4.6681]
[1645882324152,0.90752777,2780.8,2780.0,4.4181]
[1645882324153,0.90752777,2780.7,2780.0,4.4181]
[1645882324350,0.00349817,2780.8,2780.0,4.4181]
[1645882324351,0.90752777,2780.6,2780.0,4.4181]
[1645882324550,0.91102594,2780.7,2780.0,4.4181]
[1645882324750,0.90752777,2780.7,2780.0,4.4181]
[1645882325152,0.90752777,2780.7,2779.4,4.2938]
[1645882325153,0.90752777,2780.5,2779.4,4.2938]
[1645882325354,0.90752777,2780.3,2779.3,0.25]
[1645882325559,0.90752777,2780.3,2779.2,1.25118115]
[1645882325753,4.41102594,2780.2,2779.2,1.25118115]
[1645882325951,0.90752777,2780.3,2779.3,1.50262052]
[1645882326151,0.00349817,2780.1,2779.5,1.42848991]
[1645882326394,0.00349817,2780.2,2779.5,1.42848991]
[1645882326598,0.00349817,2780.2,2779.2,1.25118115]
[1645882326599,0.00497345,2779.8,2779.2,1.25118115]
[1645882327399,0.91102594,2780.1,2779.2,1.25118115]
[1645882327598,0.00497361,2779.6,2779.2,1.23931057]
[1645882328398,0.81250138,2780.1,2779.2,1.23931057]
[1645882328598,0.14739817,2780.2,2779.2,1.23931057]
[1645882329601,0.14739817,2780.2,2779.2,0.03298115]
[1645882330047,0.00487845,2779.8,2779.2,0.03298115]
[1645882331048,0.16690903,2780.3,2779.2,0.03298115]
[1645882331049,0.14739817,2780.3,2779.4,1.08611178]
[1645882331249,0.00487843,2779.7,2779.4,1.08611178]
[1645882332247,0.14739817,2780.3,2779.4,1.08611178]
[1645882332448,0.00487848,2779.7,2779.4,1.08611178]
[1645882333348,0.00349817,2780.3,2779.4,1.08611178]
[1645882333787,0.00488476,2779.7,2779.4,1.08611178]
[1645882334190,0.00488476,2779.7,2779.2,0.03298115]
[1645882334588,1.30349817,2780.3,2779.2,0.03298115]
[1645882334786,0.30349817,2780.3,2779.2,0.03298115]
[1645882334988,0.00488467,2779.7,2779.2,0.03298115]
[1645882335392,0.00488467,2779.7,2779.5,1.21988989]
[1645882335591,0.00488467,2779.7,2779.2,0.03298115]
[1645882335791,0.01953527,2780.2,2779.2,0.03298115]
[1645882335792,3.50349817,2780.3,2779.2,0.03298115]
[1645882335992,0.00488481,2779.7,2779.2,0.03298115]
[1645882337093,4.50349817,2780.3,2779.2,0.03298115]
[1645882337293,0.00488425,2779.7,2779.2,0.03298115]
[1645882338237,0.90831634,2780.1,2779.2,0.03298115]
[1645882338438,0.90831634,2780.1,2779.5,1.30661184]
[1645882338439,0.00488425,2779.7,2779.5,1.30661184]
[1645882339443,0.90831634,2780.1,2779.2,0.03298115]
[1645882339640,0.00488439,2779.7,2779.2,0.03298115]
[1645882340648,0.90831634,2780.1,2779.2,0.03298115]
[1645882340848,0.00488427,2779.7,2779.2,0.03298115]
[1645882341890,0.90831634,2780.0,2779.4,1.32410123]
[1645882342094,0.00488427,2779.7,2779.4,1.32410123]
[1645882342290,0.00488427,2779.7,2779.2,0.03298115]
[1645882342993,0.90831634,2780.0,2779.2,0.03298115]
[1645882343193,0.00488427,2779.7,2779.4,1.20982706]
[1645882343394,0.00488427,2779.7,2779.2,0.03298115]
[1645882344195,0.90831634,2780.0,2779.2,0.03298115]
[1645882344394,0.00488427,2779.7,2779.2,0.03298115]
[1645882344598,0.00488427,2779.7,2779.4,1.38198471]
[1645882345449,1.05221634,2780.1,2779.4,1.38198471]
[1645882345642,0.00488437,2779.7,2779.4,1.38198471]
[1645882345845,0.00488437,2779.7,2779.2,0.03298115]
[1645882346643,0.16333406,2780.2,2779.2,0.03298115]
[1645882346644,1.05211634,2780.2,2779.2,0.03298115]
[1645882346846,0.00488427,2779.7,2779.5,1.43312969]
[1645882347845,1.05211634,2780.2,2779.5,1.43312969]
[1645882348045,0.00488441,2779.7,2779.5,1.43312969]
[1645882348890,0.00488441,2779.7,2779.5,1.43216821]
[1645882350197,0.90831634,2780.2,2779.5,1.43216821]
[1645882350397,0.00488441,2779.7,2779.5,1.43216821]
[1645882350599,0.00488441,2779.7,2779.2,0.03298115]
[1645882351501,0.90831634,2780.0,2779.2,0.03298115]
[1645882351697,0.00488427,2779.7,2779.4,1.27481753]
[1645882352744,0.90831634,2780.1,2779.4,1.27481753]
[1645882353043,0.00488436,2779.7,2779.4,1.27481753]
[1645882353846,0.90831634,2780.1,2779.4,1.27481753]
[1645882354045,0.00488436,2779.7,2779.4,1.27481753]
[1645882355043,0.90831634,2780.2,2779.4,1.27481753]
[1645882355249,0.00488437,2779.7,2779.4,1.27481753]
[1645882356297,0.90831634,2780.2,2779.4,1.27481753]
[1645882356497,0.90831634,2780.2,2779.6,0.3625]
[1645882356498,0.00488437,2779.7,2779.6,0.3625]
[1645882356696,0.00488437,2779.7,2779.6,11.4525]
[1645882356895,0.00488437,2779.7,2779.6,11.7525]
[1645882357097,0.00488437,2779.7,2779.6,13.3372]
[1645882357098,8.437e-05,2779.7,2779.6,13.3372]
[1645882357295,8.437e-05,2779.7,2779.6,14.7395]
[1645882357499,0.00349798,2781.1,2780.8,1.22978624]
[1645882357697,0.00349798,2781.2,2779.8,31.9236]
[1645882357897,0.00349798,2781.4,2779.8,32.2236]
[1645882358096,0.00349798,2781.4,2779.8,22.1336]
[1645882358501,0.1438,2781.3,2779.8,32.8611]
[1645882358702,0.00349798,2781.2,2780.5,1.26930138]
[1645882358901,0.14729798,2781.4,2780.5,1.26930138]
[1645882359101,0.00349798,2781.2,2780.5,1.26930138]
[1645882359302,0.00349798,2781.3,2780.5,1.26930138]
[1645882359502,0.1438,2781.2,2780.5,1.26930138]
[1645882360155,0.00488336,2781.0,2780.5,1.26930138]
[1645882360951,0.1438,2781.2,2780.5,1.26930138]
[1645882361452,0.00488348,2780.9,2780.5,1.26930138]
[1645882362255,0.14729798,2781.4,2780.5,1.26930138]
[1645882362461,0.00488334,2780.8,2780.5,1.26930138]
[1645882363458,0.00349798,2781.4,2780.5,1.26930138]
[1645882363655,0.00488338,2780.8,2780.5,1.26930138]
[1645882364690,0.00349798,2781.2,2780.5,1.26930138]
[1645882364890,0.00488338,2780.8,2780.5,1.26930138]
[1645882365799,0.00349798,2781.3,2780.5,1.26930138]
[1645882365995,0.14729798,2781.5,2780.5,1.26930138]
[1645882366196,0.0048834,2780.8,2780.5,1.26930138]
[1645882366996,1.14729798,2781.5,2780.5,1.26930138]
[1645882367297,0.0048834,2780.8,2780.5,1.26930138]
[1645882367540,0.0048834,2780.8,2780.1,1.2286]
[1645882368144,6.06592798,2781.5,2780.1,1.2286]
[1645882368442,0.00488357,2780.6,2780.1,1.2286]
[1645882368642,0.00488357,2780.6,2780.4,1.08122185]
[1645882369045,0.00488357,2780.6,2780.1,1.2286]
[1645882369443,5.02249798,2781.3,2780.1,1.2286]
[1645882369645,0.00263014,2780.5,2780.1,1.2286]
[1645882369845,0.00263014,2780.5,2780.1,12.3186]
[1645882370345,0.00263014,2780.5,2780.1,1.2286]
[1645882370548,1.32879798,2781.3,2780.1,1.2286]
[1645882370549,0.66629798,2781.3,2780.1,1.2286]
[1645882370746,0.66629798,2781.3,2780.6,1.1554172]
[1645882370946,0.01051897,2780.9,2780.1,1.2286]
[1645882371799,0.00349798,2781.1,2780.1,1.2286]
[1645882372200,0.00263014,2780.6,2780.3,1.34097396]
[1645882373000,0.00349798,2781.0,2780.1,1.2286]
[1645882373207,0.00519571,2780.6,2780.1,1.2286]
[1645882373700,0.00519571,2780.6,2780.1,12.3186]
[1645882373903,0.00519571,2780.6,2780.1,1.2286]
[1645882374302,0.00349798,2781.2,2780.1,1.2286]
[1645882374501,0.0051958,2780.5,2780.1,1.2286]
[1645882374701,0.0051958,2780.5,2780.2,1.32024651]
[1645882374902,0.22947387,2781.3,2780.3,4.5]
[1645882375360,1.86243,2781.5,2780.3,4.5]
[1645882375558,1.56243,2781.5,2780.3,4.5]
[1645882375860,1.56243,2781.5,2780.7,1.2985479]
[1645882376059,3.5,2781.4,2780.1,1.2286]
[1645882376260,5.319,2781.4,2780.1,1.2286]
[1645882377466,5.319,2781.4,2780.6,1.36795181]
[1645882377659,1.819,2781.4,2780.6,1.36795181]
[1645882377858,0.1438,2781.3,2780.6,1.36795181]
[1645882378059,0.1438,2781.3,2780.7,0.00258491]
[1645882378260,0.4438,2781.3,2780.7,0.00258491]
[1645882378561,0.1438,2781.3,2780.7,0.00258491]
[1645882378795,0.4438,2781.4,2780.7,0.00258491]
[1645882378996,0.4438,2781.4,2780.6,1.36795181]
[1645882379197,0.1438,2781.4,2780.6,1.36795181]
[1645882379398,0.0051952,2781.1,2780.7,0.00519593]
[1645882380203,0.1438,2781.4,2780.6,1.36795181]
[1645882380705,0.00519529,2781.0,2780.7,0.00519584]
[1645882381312,0.91221607,2781.0,2780.7,0.00519584]
[1645882381507,1.36053117,2781.3,2780.1,1.2286]
[1645882381508,0.90702078,2780.9,2780.1,1.2286]
[1645882381805,0.90702078,2780.9,2780.7,0.00519586]
[1645882382407,0.91221603,2781.0,2780.7,0.00519586]
[1645882382642,0.90702078,2781.0,2780.5,1.40607977]
[1645882383748,0.90702078,2780.9,2780.5,1.40607977]
[1645882383948,0.90702078,2780.9,2780.1,1.2286]
[1645882385348,0.90702078,2780.8,2780.4,0.00519095]
[1645882386407,0.90702078,2780.8,2780.5,1.01180693]
[1645882386608,0.90702078,2780.8,2780.5,1.01699779]
[1645882387507,0.90702078,2780.8,2780.5,1.01180693]
[1645882387707,0.90702078,2780.8,2780.5,1.01699774]
[1645882388709,0.90702078,2780.8,2780.5,1.01180693]
[1645882388910,0.90702078,2780.8,2780.5,1.01699774]
[1645882389807,1.36053117,2781.0,2780.5,1.01180693]
[1645882389808,0.90702078,2780.7,2780.5,1.01180693]
[1645882390253,0.90702078,2780.7,2780.5,0.96699774]
[1645882390453,0.90702078,2780.8,2780.5,0.00519081]
[1645882390652,0.90702078,2780.7,2780.5,0.00519081]
[1645882390857,0.90702078,2780.8,2780.5,0.00519081]
[1645882391053,0.90702078,2780.8,2780.0,0.3]
[1645882391255,0.90702078,2780.8,2779.9,12.5948]
[1645882391459,0.90702078,2780.8,2780.5,1.13870087]
[1645882391854,0.40702078,2780.8,2780.5,1.13870087]
[1645882392353,0.40702078,2780.8,2780.5,1.13351001]
[1645882392555,0.40702078,2780.8,2780.5,1.13870082]
[1645882392954,0.00518966,2781.1,2780.5,1.13870082]
[1645882393557,1.50433117,2781.2,2780.5,1.13351001]
[1645882393815,0.0051898,2781.1,2780.7,0.00519067]
[1645882394615,1.50433117,2781.2,2780.5,1.13351001]
[1645882395016,0.00518989,2781.1,2780.8,0.00519058]
[1645882395219,1.36572106,2781.1,2780.8,0.00519058]
[1645882395420,1.36053117,2781.0,2780.8,0.00519058]
[1645882395820,1.36053117,2781.0,2779.9,1.2048]
[1645882396020,1.36053117,2781.0,2780.0,1.5133558]
[1645882396021,1.36401286,2781.0,2780.0,1.5133558]
[1645882396222,1.36401286,2781.0,2780.8,0.00519058]
[1645882396526,1.36053117,2781.0,2780.8,0.00519058]
[1645882397122,1.36053117,2781.0,2780.0,0.3]
[1645882397323,1.36401286,2781.0,2780.8,0.00519058]
[1645882397562,1.36053117,2781.0,2780.8,0.00519058]
[1645882397751,0.00518989,2781.1,2780.8,0.00519058]
[1645882398350,1.36401286,2781.6,2780.4,12.8963]
[1645882398550,1.36401286,2781.6,2780.8,0.00519061]
[1645882398551,0.00518994,2781.1,2780.8,0.00519061]
[1645882398750,0.00518994,2781.1,2780.9,1.42474923]
[1645882399551,1.36053117,2781.5,2780.9,1.42474923]
[1645882399751,0.00518997,2781.1,2780.9,1.42474923]
[1645882400757,0.00348169,2781.4,2780.9,12.51474923]
[1645882400758,0.90903107,2781.3,2780.9,12.51474923]
[1645882401057,0.00518997,2781.1,2780.9,12.51474923]
[1645882401911,0.90903107,2781.3,2780.9,12.51474923]
[1645882402113,0.00348169,2781.7,2781.1,11.09]
[1645882402320,0.00348169,2781.5,2781.1,12.4525]
[1645882402512,0.02423696,2781.8,2781.3,11.09]
[1645882402713,0.02075527,2781.8,2781.4,12.23173873]
[1645882402911,0.02075527,2781.8,2781.4,12.26200863]
[1645882403114,0.02075527,2781.8,2781.5,0.1438]
[1645882403514,0.02075527,2781.8,2781.5,1.04286]
[1645882403713,0.00348169,2782.1,2781.5,1.04286]
[1645882403714,0.00518941,2781.7,2781.5,0.1438]
[1645882404115,0.00518941,2781.7,2781.4,12.40580863]
[1645882404415,0.00348169,2782.1,2782.0,1.19692644]
[1645882404612,1.36053117,2782.2,2781.4,0.1740699]
[1645882404613,0.00485366,2781.7,2781.4,0.1740699]
[1645882405055,0.00485366,2781.7,2781.4,0.0302699]
[1645882405653,1.36401286,2782.0,2781.4,0.0302699]
[1645882405856,0.0048537,2781.7,2781.4,0.0302699]
[1645882406859,4.0063,2782.5,2781.4,0.0302699]
[1645882406860,1.36053117,2782.2,2781.9,1.33479729]
[1645882407056,0.00348169,2782.2,2781.4,0.0302699]
[1645882407253,0.0048537,2781.7,2781.4,0.0302699]
[1645882407655,0.0048537,2781.7,2781.5,0.89906]
[1645882407855,0.0048537,2781.7,2781.4,0.3302699]
[1645882408055,1.36401286,2782.4,2781.4,0.6302699]
[1645882408253,0.01950225,2782.2,2781.7,1.27573588]
[1645882409309,1.36401286,2782.4,2781.7,1.27573588]
[1645882409506,0.00487601,2782.1,2781.7,1.27573588]
[1645882410411,1.36401286,2782.4,2781.7,1.27573588]
[1645882410611,0.00487605,2782.0,2781.7,1.27573588]
[1645882411616,0.90552262,2782.2,2781.7,12.36573588]
[1645882412011,0.00487455,2782.0,2781.7,12.36573588]
[1645882412647,0.00487455,2782.0,2781.7,1.27573588]
[1645882412847,0.90552262,2782.2,2781.7,1.27573588]
[1645882413148,0.00487455,2782.0,2781.8,11.09]
[1645882414050,0.90552262,2782.3,2781.8,11.09]
[1645882414247,0.90552262,2782.3,2781.7,1.27573588]
[1645882414449,0.00487451,2782.0,2781.7,1.27573588]
[1645882415256,0.00348169,2782.5,2781.8,11.09]
[1645882415453,2.17654156,2783.1,2781.8,11.09]
[1645882415454,0.00348169,2782.3,2781.8,11.8915]
[1645882415651,1.086e-05,2782.0,2781.8,12.254]
[1645882415852,1.086e-05,2782.0,2781.9,13.25017]
[1645882416299,1.086e-05,2782.0,2781.9,19.99377]
[1645882416502,0.00348169,2783.1,2782.0,0.3625]
[1645882416702,0.00348169,2783.6,2782.2,11.4525]
[1645882416901,0.00348169,2783.6,2782.8,11.09]
[1645882417102,0.14708169,2784.0,2782.8,11.09]
[1645882417302,0.14708169,2784.0,2783.4,1.2133183]
[1645882417604,0.1436,2784.0,2783.4,1.2133183]
[1645882417802,0.1436,2784.0,2782.8,11.09]
[1645882418002,0.00260753,2783.8,2782.7,11.39]
[1645882418803,0.14708169,2784.1,2783.7,1.18056202]
[1645882419003,8.0387,2784.2,2782.8,11.2336]
[1645882419004,4.8423,2784.2,2783.0,11.09]
[1645882419202,4.8423,2784.2,2783.0,11.4525]
[1645882419203,0.00348169,2784.0,2783.0,11.4525]
[1645882419409,1.0,2784.3,2783.0,13.651]
[1645882419410,0.00348169,2784.1,2783.0,13.651]
[1645882419602,0.00348169,2784.2,2783.0,12.8961]
[1645882419804,0.00348169,2784.5,2783.2,1.7967266]
[1645882420087,0.00348169,2784.5,2783.1,5.27886]
[1645882420088,0.04149491,2784.5,2783.6,1.09379805]
[1645882420281,0.00260721,2783.7,2783.6,1.09379805]
[1645882420477,0.00260721,2783.7,2783.2,18.14]
[1645882420677,0.00260721,2783.7,2783.2,18.44]
[1645882420978,0.00260721,2783.7,2783.3,11.09]
[1645882421178,0.04149491,2784.5,2783.2,19.3385]
[1645882421378,0.04149491,2784.5,2783.3,11.09]
[1645882421579,0.00260721,2783.6,2783.3,1.39859186]
[1645882422382,0.04149491,2784.5,2783.3,12.48859186]
[1645882422580,0.1436,2784.4,2783.3,1.39859186]
[1645882422784,0.00519266,2783.6,2783.3,1.39859186]
[1645882423582,0.04383975,2784.3,2783.3,12.48859186]
[1645882423996,0.00519266,2783.6,2783.3,12.78859186]
[1645882424598,0.00519266,2783.6,2783.3,1.69859186]
[1645882424797,0.04383975,2784.3,2783.3,1.69859186]
[1645882425200,0.04383975,2784.3,2783.3,0.3]
[1645882425201,0.00519266,2783.6,2783.3,0.3]
[1645882425406,0.00519266,2783.6,2782.6,0.25]
[1645882425602,0.00519266,2783.6,2781.7,1.0]
[1645882425603,0.01202493,2782.7,2781.7,1.0]
[1645882425802,0.3625,2782.5,2780.5,0.2984]
[1645882426003,11.09,2782.0,2780.6,7.1926]
[1645882426203,14.78708282,2781.9,2780.6,7.1926]
[1645882426402,14.78708282,2781.9,2780.9,0.0051965]
[1645882426403,5.0,2781.5,2780.9,0.0051965]
[1645882426606,4.1628,2781.4,2780.9,0.0051965]
[1645882426810,1.14288108,2781.4,2780.9,0.0051965]
[1645882427011,1.84288108,2781.4,2780.9,0.0051965]
[1645882427209,0.00348169,2781.7,2780.9,0.0051965]
[1645882427210,0.14728169,2781.7,2780.9,0.0051965]
[1645882427411,0.1438,2781.7,2780.6,7.1926]
[1645882427653,0.00348169,2781.8,2780.6,7.1926]
[1645882427857,0.00348169,2781.8,2780.6,7.5864]
[1645882428058,0.00348169,2781.8,2780.6,7.4426]
[1645882428856,3.50348169,2781.8,2780.6,7.4426]
[1645882429057,5.06583169,2781.8,2780.6,7.4426]
[1645882429356,6.36583169,2781.8,2780.6,7.1926]
[1645882429557,0.00921809,2781.7,2780.6,7.1926]
[1645882429757,0.89975,2781.3,2780.6,7.1926]
[1645882429957,3.5,2781.2,2780.6,7.1926]
[1645882430156,4.019,2781.2,2780.6,7.1926]
[1645882430562,4.9187376,2781.2,2780.6,7.1926]
[1645882430759,0.89976,2781.1,2780.6,7.1926]
[1645882431159,0.89976,2781.1,2780.8,0.00519555]
[1645882431698,0.89976,2781.0,2780.8,0.00519555]
[1645882432099,1.4187376,2781.2,2780.6,7.1926]
[1645882432100,0.519,2781.2,2780.6,7.1926]
[1645882432300,0.519,2781.2,2780.8,0.00519555]
[1645882432498,0.519,2781.2,2780.8,1.23193282]
[1645882432798,0.519,2781.2,2780.8,0.00519555]
[1645882433300,0.519,2781.2,2780.6,7.1926]
[1645882433499,0.519,2781.2,2780.8,0.00519565]
[1645882434501,0.519,2781.2,2780.6,8.35061728]
[1645882434703,0.519,2781.2,2780.8,0.00519565]
[1645882435160,0.0051946,2781.3,2780.8,0.00519565]
[1645882435757,0.9628,2781.5,2780.6,8.35061728]
[1645882435962,0.9628,2781.5,2780.8,0.00519569]
[1645882435963,0.00519464,2781.3,2780.8,0.00519569]
[1645882436959,0.52821809,2781.7,2781.2,1.05699831]
[1645882437159,0.00519464,2781.3,2781.2,1.05699831]
[1645882437357,0.00519464,2781.3,2780.8,0.00519569]
[1645882438057,0.00921809,2781.7,2780.6,7.1926]
[1645882438458,0.00519464,2781.3,2780.8,0.00519569]
[1645882438661,0.00519464,2781.3,2780.8,4.66559569]
[1645882438903,0.00519464,2781.3,2780.8,0.00519569]
[1645882439305,0.00921809,2781.7,2780.6,7.1926]
[1645882439502,0.00921809,2781.7,2780.8,0.00519569]
[1645882439503,0.00519464,2781.3,2780.8,0.00519569]
[1645882440507,0.00921809,2781.7,2781.0,1.13253168]
[1645882440710,0.00519464,2781.3,2780.8,0.00519569]
[1645882441709,0.00921809,2781.7,2780.6,7.1926]
[1645882441909,0.00519464,2781.3,2780.8,0.00519569]
[1645882442955,0.00921809,2781.7,2780.6,7.1926]
[1645882443156,0.00921809,2781.7,2780.8,0.00519569]
[1645882443157,0.00519464,2781.3,2780.8,0.00519569]
[1645882443357,0.00519464,2781.3,2780.9,1.19711788]
[1645882444156,0.00921809,2781.7,2780.9,1.19711788]
[1645882444360,0.00519469,2781.3,2780.9,1.19711788]
[1645882445363,0.00921809,2781.7,2780.9,1.19711788]
[1645882445662,0.00519469,2781.3,2780.9,1.19711788]
[1645882445864,0.00519469,2781.3,2780.9,1.06669905]
[1645882446064,0.00519469,2781.3,2780.8,0.00519574]
[1645882446370,0.00519469,2781.3,2780.0,0.25]
[1645882446371,5.01243565,2780.9,2779.5,1.0]
[1645882446564,5.01243565,2780.9,2779.3,0.00373667]
[1645882446565,0.09999999,2779.4,2779.3,0.00373667]
[1645882446758,0.09999999,2779.4,2779.0,0.25]
[1645882446759,1.088,2779.3,2779.0,0.00373667]
[1645882446960,1.088,2779.3,2778.6,0.00373667]
[1645882447159,1.088,2779.3,2778.6,1.39938652]
[1645882447358,1.088,2779.1,2778.4,0.00373667]
[1645882447560,1.088,2779.1,2778.2,0.2984]
[1645882447561,5.107,2779.1,2778.2,0.2984]
[1645882447758,5.407,2779.1,2778.2,0.2984]
[1645882448057,6.407,2779.1,2778.2,0.2984]
[1645882448262,3.80735,2779.1,2778.2,0.2984]
[1645882448657,3.80735,2779.1,2778.6,1.13079623]
[1645882449058,2.907,2779.1,2778.6,1.13079623]
[1645882449263,1.088,2779.1,2778.6,1.13079623]
[1645882450469,1.088,2779.1,2778.7,0.00521091]
[1645882451474,1.088,2779.1,2778.6,1.13079623]
[1645882451673,1.088,2779.1,2778.8,0.00521086]
[1645882452572,1.088,2779.1,2778.6,1.13079623]
[1645882452771,1.088,2779.1,2778.8,0.00521082]
[1645882453913,1.088,2779.1,2778.6,1.13079623]
[1645882454212,1.088,2779.1,2778.8,0.00521082]
[1645882455013,1.088,2779.1,2778.6,1.13079623]
[1645882455419,1.088,2779.1,2778.8,0.00487478]
[1645882456319,1.088,2779.1,2778.6,1.13079623]
[1645882456516,1.088,2779.1,2778.8,0.00487478]
[1645882457558,1.088,2779.1,2778.6,1.43079623]
[1645882457759,1.088,2779.1,2778.8,0.00487478]
[1645882458160,1.088,2779.1,2778.8,11.45737478]
[1645882458361,1.088,2779.1,2778.8,11.75737478]
[1645882458761,1.088,2779.1,2778.8,11.7525]
[1645882458960,1.088,2779.1,2778.8,11.75737478]
[1645882459362,1.038,2779.1,2778.8,11.75737478]
[1645882459662,1.038,2779.1,2778.8,0.66737478]
[1645882459961,1.038,2779.1,2778.8,0.6625]
[1645882460162,1.038,2779.1,2778.8,0.66739746]
[1645882460765,1.038,2779.1,2778.8,0.30489746]
[1645882460966,1.038,2779.1,2778.7,0.3625]
[1645882461319,1.038,2779.1,2778.8,0.00489746]
[1645882462321,1.038,2779.1,2778.6,1.13079623]
[1645882462516,1.038,2779.1,2778.8,0.00489746]
[1645882463523,1.038,2779.1,2778.6,1.13079623]
[1645882463822,1.038,2779.1,2778.8,0.00489592]
[1645882464625,1.038,2779.1,2778.7,3.5]
[1645882464830,1.038,2779.1,2778.3,0.00373667]
[1645882464831,3.5,2779.0,2778.3,0.00373667]
[1645882465069,3.5,2779.0,2776.9,7.7484]
[1645882465070,1.93842,2778.9,2778.2,0.01958788]
[1645882465269,5.057,2778.8,2778.2,0.01958788]
[1645882465468,0.1439,2778.7,2778.2,0.01958788]
[1645882465671,1.038,2778.5,2778.2,0.01958788]
[1645882465869,1.038,2778.3,2777.7,0.00373667]
[1645882466071,1.038,2778.1,2777.6,1.03479307]
[1645882466368,1.1819,2778.0,2777.6,0.00373667]
[1645882466570,7.5,2777.7,2776.9,0.25]
[1645882466770,7.5,2777.7,2775.8,1.0]
[1645882466771,0.02828782,2776.7,2775.8,1.0]
[1645882466968,0.02828782,2776.7,2775.2,7.45]
[1645882466969,1.557,2776.6,2775.9,7.204]
[1645882467172,1.038,2776.5,2775.9,7.204]
[1645882467372,0.02828782,2776.7,2776.0,12.321073]
[1645882467571,8.782e-05,2776.7,2776.2,5.0]
[1645882467770,0.1439,2777.6,2776.7,7.5]
[1645882467969,1.0,2778.1,2776.6,0.01284793]
[1645882468172,1.0,2778.1,2776.2,0.18008108]
[1645882468173,5.0,2777.0,2776.2,0.18008108]
[1645882468370,0.519,2776.9,2776.1,7.2044]
[1645882468570,3.5,2777.7,2776.1,7.2044]
[1645882468820,0.519,2777.4,2777.0,0.00490476]
[1645882469612,1.41994,2777.4,2776.2,0.25]
[1645882469812,2.62081,2777.4,2777.1,0.00490472]
[1645882470217,3.62081,2777.4,2777.1,0.00490472]
[1645882470414,2.62081,2777.4,2777.1,0.00490472]
[1645882470618,3.62081,2777.4,2776.8,1.20035111]
[1645882470815,3.92081,2777.4,2776.1,7.2044]
[1645882471015,3.92081,2777.4,2777.1,0.00490096]
[1645882472019,3.92081,2777.4,2776.8,1.26093641]
[1645882472020,0.90097,2777.1,2776.8,1.26093641]
[1645882472315,0.90097,2777.1,2776.7,0.01960677]
[1645882473156,0.90097,2777.1,2776.2,0.1439]
[1645882473356,0.90097,2777.1,2776.5,1.04175711]
[1645882473758,0.90097,2777.1,2776.8,0.00457992]
[1645882474559,0.90097,2777.1,2776.5,1.04175711]
[1645882474760,0.90097,2777.1,2776.8,0.00457988]
[1645882475869,0.519,2777.0,2776.8,0.00457988]
[1645882476516,0.90097,2777.1,2776.8,0.00457988]
[1645882476717,1.0,2777.2,2776.8,0.00457988]
[1645882476917,1.0,2777.2,2776.6,0.00372171]
[1645882477119,0.519,2777.3,2776.8,0.00462929]
[1645882478119,0.90097,2777.2,2776.6,0.00372171]
[1645882478319,3.5219671,2777.2,2776.9,2.92e-05]
[1645882478520,3.5219671,2777.2,2776.5,0.01851959]
[1645882478521,16.09,2777.0,2776.5,0.01851959]
[1645882478721,11.09,2776.7,2776.5,0.01851959]
[1645882478918,1.80271,2776.8,2776.5,0.01851959]
[1645882478919,11.7529,2776.6,2776.5,0.01851959]
[1645882479119,12.51034,2776.6,2776.5,0.01851959]
[1645882479320,12.51034,2776.6,2776.2,0.00372171]
[1645882479321,14.62374,2776.6,2776.2,0.00372171]
[1645882479519,15.52512,2776.6,2776.1,7.2044]
[1645882479724,0.3,2776.5,2776.1,7.2044]
[1645882479921,0.519,2776.4,2776.1,7.2044]
[1645882480374,11.609,2776.4,2776.1,7.2044]
[1645882480573,11.609,2776.4,2775.3,0.25]
[1645882480574,15.49132,2776.3,2775.6,0.00372171]
[1645882480772,11.609,2776.2,2775.4,0.00372171]